[Event "Titled Tuesday Blitz February 15 Late 2022"]
[White "Svane, Rasmus"]
[Black "Paravyan, David"]
[WhiteFideId "4657101"]
[BlackFideId "4194985"]
[WhiteElo "2645"]
[BlackElo "2569"]
[Result "1-0"]
[Round "06"]
[TimeControl "180+1"]
[Date "2022.02.15"]
[WhiteClock "0:01:02"]
[BlackClock "0:00:12"]

1. Nf3 {[%clk 0:03:00]}  Nf6 {[%clk 0:03:00]} 2. g3 {[%clk 0:03:01]}  g6 {[%clk 0:03:00]} 3. Bg2 {[%clk 0:03:01]}  Bg7 {[%clk 0:03:00]} 4. O-O {[%clk 0:03:02]}  O-O {[%clk 0:03:00]} 5. d4 {[%clk 0:03:03]}  d5 {[%clk 0:03:00]} 6. c4 {[%clk 0:03:03]}  c6 {[%clk 0:03:00]} 7. Qb3 {[%clk 0:03:04]}  Qb6 {[%clk 0:02:58]} 8. Nc3 {[%clk 0:03:03]}  Rd8 {[%clk 0:02:58]} 9. Bd2 {[%clk 0:03:04]}  Bf5 {[%clk 0:02:55]} 10. Na4 {[%clk 0:03:03]}  Qxb3 {[%clk 0:02:52]} 11. axb3 {[%clk 0:03:04]}  Ne4 {[%clk 0:02:52]} 12. Nb6 {[%clk 0:02:52]}  axb6 {[%clk 0:02:51]} 13. Rxa8 {[%clk 0:02:52]}  Nxd2 {[%clk 0:02:51]} 14. Nxd2 {[%clk 0:02:53]}  Bxd4 {[%clk 0:02:51]} 15. cxd5 {[%clk 0:02:47]}  cxd5 {[%clk 0:02:48]} 16. Bxd5 {[%clk 0:02:42]}  Bxb2 {[%clk 0:02:04]} 17. Nc4 {[%clk 0:02:33]}  Bf6 {[%clk 0:01:08]} 18. Bxb7 {[%clk 0:02:14]}  b5 {[%clk 0:01:06]} 19. Ne3 {[%clk 0:02:09]}  Be6 {[%clk 0:01:01]} 20. Rd1 {[%clk 0:02:00]}  Rf8 {[%clk 0:01:00]} 21. Nd5 {[%clk 0:01:42]}  b4 {[%clk 0:00:50]} 22. Nxf6+ {[%clk 0:01:28]}  exf6 {[%clk 0:00:51]} 23. Bd5 {[%clk 0:01:29]}  Bf5 {[%clk 0:00:39]} 24. Rd4 {[%clk 0:01:23]}  Kg7 {[%clk 0:00:22]} 25. Rxb4 {[%clk 0:01:18]}  Nd7 {[%clk 0:00:17]} 26. Rxf8 {[%clk 0:01:18]}  Kxf8 {[%clk 0:00:18]} 27. Rb7 {[%clk 0:01:14]}  Ne5 {[%clk 0:00:15]} 28. f4 {[%clk 0:01:11]}  Nd7 {[%clk 0:00:15]} 29. e4 {[%clk 0:01:08]}  Bh3 {[%clk 0:00:15]} 30. Kf2 {[%clk 0:01:07]}  h5 {[%clk 0:00:14]} 31. Ke3 {[%clk 0:01:05]}  g5 {[%clk 0:00:12]} 32. b4 {[%clk 0:01:02]} 1-0


[Site "https://www.chess.com"]

[Event "Titled Tuesday Blitz February 15 Late 2022"]
[White "Tang, Andrew"]
[Black "Jaracz, Pawel"]
[WhiteFideId "2059630"]
[BlackFideId "1102222"]
[WhiteElo "2584"]
[BlackElo "2429"]
[Result "1-0"]
[Round "06"]
[TimeControl "180+1"]
[Date "2022.02.15"]
[WhiteClock "0:00:03"]
[BlackClock "0:00:05"]

1. d4 {[%clk 0:03:00]}  Nf6 {[%clk 0:02:54]} 2. c4 {[%clk 0:02:57]}  e6 {[%clk 0:02:54]} 3. Nc3 {[%clk 0:02:54]}  Bb4 {[%clk 0:02:54]} 4. Qc2 {[%clk 0:02:54]}  d5 {[%clk 0:02:54]} 5. cxd5 {[%clk 0:02:54]}  Qxd5 {[%clk 0:02:50]} 6. Nf3 {[%clk 0:02:54]}  Qf5 {[%clk 0:02:49]} 7. Qb3 {[%clk 0:02:53]}  Nc6 {[%clk 0:02:41]} 8. Bd2 {[%clk 0:02:53]}  O-O {[%clk 0:02:37]} 9. h3 {[%clk 0:02:52]}  Bxc3 {[%clk 0:02:16]} 10. Bxc3 {[%clk 0:02:48]}  Ne4 {[%clk 0:02:16]} 11. e3 {[%clk 0:02:35]}  Qd5 {[%clk 0:01:45]} 12. Bc4 {[%clk 0:02:22]}  Qd6 {[%clk 0:01:43]} 13. O-O {[%clk 0:02:15]}  b6 {[%clk 0:01:30]} 14. Bd3 {[%clk 0:02:01]}  Nxc3 {[%clk 0:01:18]} 15. Qxc3 {[%clk 0:01:59]}  Bb7 {[%clk 0:01:16]} 16. Be4 {[%clk 0:01:39]}  Rac8 {[%clk 0:01:15]} 17. Ne5 {[%clk 0:01:27]}  Nxd4 {[%clk 0:01:05]} 18. Bxh7+ {[%clk 0:01:03]}  Kxh7 {[%clk 0:01:05]} 19. exd4 {[%clk 0:01:02]}  c5 {[%clk 0:00:58]} 20. Rfd1 {[%clk 0:00:32]}  Qd5 {[%clk 0:00:39]} 21. Qg3 {[%clk 0:00:31]}  cxd4 {[%clk 0:00:37]} 22. Nf3 {[%clk 0:00:31]}  d3 {[%clk 0:00:33]} 23. Rxd3 {[%clk 0:00:31]}  Qf5 {[%clk 0:00:28]} 24. Ng5+ {[%clk 0:00:25]}  Kg8 {[%clk 0:00:28]} 25. Rd7 {[%clk 0:00:25]}  Bd5 {[%clk 0:00:25]} 26. Rxa7 {[%clk 0:00:25]}  Rc2 {[%clk 0:00:25]} 27. b3 {[%clk 0:00:19]}  e5 {[%clk 0:00:14]} 28. Re1 {[%clk 0:00:18]}  Re8 {[%clk 0:00:13]} 29. h4 {[%clk 0:00:16]}  Qg6 {[%clk 0:00:12]} 30. Kh2 {[%clk 0:00:16]}  f6 {[%clk 0:00:12]} 31. Nf3 {[%clk 0:00:08]}  Qxg3+ {[%clk 0:00:11]} 32. Kxg3 {[%clk 0:00:09]}  Rc3 {[%clk 0:00:08]} 33. Re3 {[%clk 0:00:09]}  Rec8 {[%clk 0:00:08]} 34. Ra6 {[%clk 0:00:07]}  b5 {[%clk 0:00:07]} 35. Ra5 {[%clk 0:00:07]}  Rxe3 {[%clk 0:00:06]} 36. fxe3 {[%clk 0:00:08]}  Bc6 {[%clk 0:00:06]} 37. Kf2 {[%clk 0:00:09]}  Bd7 {[%clk 0:00:05]} 38. Ne1 {[%clk 0:00:07]}  Rc1 {[%clk 0:00:05]} 39. Ra7 {[%clk 0:00:07]}  Bf5 {[%clk 0:00:05]} 40. Rb7 {[%clk 0:00:07]}  Ra1 {[%clk 0:00:05]} 41. Rxb5 {[%clk 0:00:06]}  Rxa2+ {[%clk 0:00:05]} 42. Kf3 {[%clk 0:00:06]}  Bd7 {[%clk 0:00:03]} 43. Rb6 {[%clk 0:00:06]}  Rd2 {[%clk 0:00:03]} 44. g3 {[%clk 0:00:06]}  Bf5 {[%clk 0:00:02]} 45. e4 {[%clk 0:00:06]}  Bg6 {[%clk 0:00:02]} 46. g4 {[%clk 0:00:05]}  Rb2 {[%clk 0:00:02]} 47. h5 {[%clk 0:00:05]}  Bf7 {[%clk 0:00:02]} 48. Nd3 {[%clk 0:00:05]}  Rxb3 {[%clk 0:00:02]} 49. Rxb3 {[%clk 0:00:04]}  Bxb3 {[%clk 0:00:03]} 50. Nc5 {[%clk 0:00:04]}  Bd1+ {[%clk 0:00:03]} 51. Kg3 {[%clk 0:00:04]}  Kf7 {[%clk 0:00:04]} 52. Kh4 {[%clk 0:00:05]}  Bc2 {[%clk 0:00:04]} 53. g5 {[%clk 0:00:05]}  f5 {[%clk 0:00:04]} 54. g6+ {[%clk 0:00:03]}  Kf6 {[%clk 0:00:04]} 55. Nd7+ {[%clk 0:00:03]}  Ke7 {[%clk 0:00:04]} 56. Nxe5 {[%clk 0:00:01]}  fxe4 {[%clk 0:00:05]} 57. Ng4 {[%clk 0:00:02]}  Bd1 {[%clk 0:00:04]} 58. Ne3 {[%clk 0:00:02]}  Kf6 {[%clk 0:00:05]} 59. Nxd1 {[%clk 0:00:03]}  Kf5 {[%clk 0:00:04]} 60. Ne3+ {[%clk 0:00:03]}  Kf4 {[%clk 0:00:05]} 61. h6 {[%clk 0:00:03]} 1-0


[Site "https://www.chess.com"]

[Event "Titled Tuesday Blitz February 15 Late 2022"]
[White "Villegas, Pierre"]
[Black "Ladan, Nicholas"]
[WhiteFideId "654183"]
[BlackFideId "30918855"]
[WhiteElo "2410"]
[BlackElo "2342"]
[Result "1/2-1/2"]
[Round "06"]
[TimeControl "180+1"]
[Date "2022.02.16"]
[WhiteClock "0:00:06"]
[BlackClock "0:00:12"]

1. d4 {[%clk 0:03:00]}  d5 {[%clk 0:03:00]} 2. c4 {[%clk 0:03:00]}  c6 {[%clk 0:03:00]} 3. Nf3 {[%clk 0:03:00]}  Nf6 {[%clk 0:03:00]} 4. Qc2 {[%clk 0:03:00]}  g6 {[%clk 0:02:59]} 5. Bf4 {[%clk 0:03:00]}  Bg7 {[%clk 0:02:58]} 6. e3 {[%clk 0:02:59]}  Bf5 {[%clk 0:02:57]} 7. Qb3 {[%clk 0:02:59]}  Qb6 {[%clk 0:02:56]} 8. Nc3 {[%clk 0:02:59]}  O-O {[%clk 0:02:55]} 9. c5 {[%clk 0:02:53]}  Qxb3 {[%clk 0:02:53]} 10. axb3 {[%clk 0:02:54]}  Nbd7 {[%clk 0:02:53]} 11. h3 {[%clk 0:02:47]}  h6 {[%clk 0:02:52]} 12. Nd2 {[%clk 0:02:16]}  g5 {[%clk 0:02:51]} 13. Bh2 {[%clk 0:02:15]}  a6 {[%clk 0:02:49]} 14. b4 {[%clk 0:02:12]}  Rae8 {[%clk 0:02:47]} 15. Nb3 {[%clk 0:01:58]}  e5 {[%clk 0:02:40]} 16. Kd2 {[%clk 0:01:58]}  exd4 {[%clk 0:02:28]} 17. exd4 {[%clk 0:01:58]}  Re6 {[%clk 0:02:16]} 18. f3 {[%clk 0:01:37]}  Rfe8 {[%clk 0:01:39]} 19. g4 {[%clk 0:01:26]}  Bg6 {[%clk 0:01:32]} 20. Be2 {[%clk 0:01:07]}  Nh7 {[%clk 0:01:08]} 21. Rae1 {[%clk 0:00:58]}  Bf6 {[%clk 0:01:07]} 22. Bg3 {[%clk 0:00:40]}  Bd8 {[%clk 0:01:04]} 23. Bd1 {[%clk 0:00:17]}  f5 {[%clk 0:01:02]} 24. Rxe6 {[%clk 0:00:10]}  Rxe6 {[%clk 0:01:03]} 25. Bd6 {[%clk 0:00:10]}  f4 {[%clk 0:00:58]} 26. Re1 {[%clk 0:00:09]}  Kf7 {[%clk 0:00:57]} 27. h4 {[%clk 0:00:06]}  Nhf6 {[%clk 0:00:56]} 28. h5 {[%clk 0:00:05]}  Bh7 {[%clk 0:00:55]} 29. Rxe6 {[%clk 0:00:05]}  Kxe6 {[%clk 0:00:55]} 30. Bc2 {[%clk 0:00:05]}  Bxc2 {[%clk 0:00:52]} 31. Kxc2 {[%clk 0:00:06]}  Ne8 {[%clk 0:00:52]} 32. Kd3 {[%clk 0:00:01]}  Nxd6 {[%clk 0:00:51]} 33. cxd6 {[%clk 0:00:02]}  Kxd6 {[%clk 0:00:49]} 34. Nc5 {[%clk 0:00:03]}  Nxc5+ {[%clk 0:00:32]} 35. bxc5+ {[%clk 0:00:02]}  Kd7 {[%clk 0:00:26]} 36. Na4 {[%clk 0:00:03]}  Ba5 {[%clk 0:00:24]} 37. Kc2 {[%clk 0:00:02]}  Kc7 {[%clk 0:00:24]} 38. Kd3 {[%clk 0:00:03]}  b5 {[%clk 0:00:23]} 39. cxb6+ {[%clk 0:00:03]}  Bxb6 {[%clk 0:00:24]} 40. b3 {[%clk 0:00:02]}  Ba7 {[%clk 0:00:24]} 41. Kc3 {[%clk 0:00:02]}  Kd6 {[%clk 0:00:23]} 42. Nb2 {[%clk 0:00:03]}  c5 {[%clk 0:00:23]} 43. dxc5+ {[%clk 0:00:03]}  Bxc5 {[%clk 0:00:22]} 44. Nd3 {[%clk 0:00:04]}  Be3 {[%clk 0:00:20]} 45. Kb4 {[%clk 0:00:03]}  Bd2+ {[%clk 0:00:15]} 46. Ka4 {[%clk 0:00:03]}  d4 {[%clk 0:00:15]} 47. Ka3 {[%clk 0:00:04]}  Kd5 {[%clk 0:00:16]} 48. Ka4 {[%clk 0:00:04]}  Bc3 {[%clk 0:00:16]} 49. Ka3 {[%clk 0:00:05]}  Kc6 {[%clk 0:00:13]} 50. Ka4 {[%clk 0:00:05]}  Kb6 {[%clk 0:00:14]} 51. Ka3 {[%clk 0:00:06]}  Kb5 {[%clk 0:00:14]} 52. Ka2 {[%clk 0:00:06]}  a5 {[%clk 0:00:14]} 53. Ka3 {[%clk 0:00:07]}  Bb4+ {[%clk 0:00:15]} 54. Ka2 {[%clk 0:00:07]}  a4 {[%clk 0:00:14]} 55. bxa4+ {[%clk 0:00:07]}  Kxa4 {[%clk 0:00:15]} 56. Kb2 {[%clk 0:00:07]}  Bc3+ {[%clk 0:00:16]} 57. Kc2 {[%clk 0:00:07]}  Kb5 {[%clk 0:00:16]} 58. Ne5 {[%clk 0:00:08]}  Kb4 {[%clk 0:00:14]} 59. Kd3 {[%clk 0:00:08]}  Kc5 {[%clk 0:00:12]} 60. Nf7 {[%clk 0:00:08]}  Ba5 {[%clk 0:00:09]} 61. Nxh6 {[%clk 0:00:08]}  Bd8 {[%clk 0:00:07]} 62. Nf7 {[%clk 0:00:08]}  Bf6 {[%clk 0:00:08]} 63. h6 {[%clk 0:00:09]}  Kd5 {[%clk 0:00:08]} 64. h7 {[%clk 0:00:09]}  Ke6 {[%clk 0:00:08]} 65. Nxg5+ {[%clk 0:00:04]}  Ke7 {[%clk 0:00:04]} 66. Ne4 {[%clk 0:00:04]}  Be5 {[%clk 0:00:03]} 67. g5 {[%clk 0:00:03]}  Kf8 {[%clk 0:00:03]} 68. Nc5 {[%clk 0:00:03]}  Kg7 {[%clk 0:00:02]} 69. Nd7 {[%clk 0:00:03]}  Kxh7 {[%clk 0:00:03]} 70. Nxe5 {[%clk 0:00:03]}  Kg7 {[%clk 0:00:03]} 71. Kxd4 {[%clk 0:00:04]}  Kg8 {[%clk 0:00:02]} 72. Ke4 {[%clk 0:00:05]}  Kg7 {[%clk 0:00:03]} 73. Kxf4 {[%clk 0:00:05]}  Kg8 {[%clk 0:00:04]} 74. Kg4 {[%clk 0:00:05]}  Kg7 {[%clk 0:00:05]} 75. f4 {[%clk 0:00:06]}  Kg8 {[%clk 0:00:06]} 76. f5 {[%clk 0:00:07]}  Kg7 {[%clk 0:00:07]} 77. f6+ {[%clk 0:00:07]}  Kg8 {[%clk 0:00:08]} 78. Kf5 {[%clk 0:00:08]}  Kh8 {[%clk 0:00:09]} 79. g6 {[%clk 0:00:08]}  Kg8 {[%clk 0:00:09]} 80. Nf3 {[%clk 0:00:08]}  Kh8 {[%clk 0:00:10]} 81. Nh2 {[%clk 0:00:06]}  Kg8 {[%clk 0:00:11]} 82. Ng4 {[%clk 0:00:07]}  Kh8 {[%clk 0:00:12]} 83. Nh6 {[%clk 0:00:06]} 1/2-1/2


[Site "https://www.chess.com"]

[Event "Titled Tuesday Blitz February 15 Late 2022"]
[White "Yurovskykh, Oleksandr"]
[Black "Petrosyan, Manuel"]
[WhiteFideId "14134020"]
[BlackFideId "13300857"]
[WhiteElo "2292"]
[BlackElo "2592"]
[Result "0-1"]
[Round "06"]
[TimeControl "180+1"]
[Date "2022.02.15"]
[WhiteClock "0:00:04"]
[BlackClock "0:00:20"]

1. d4 {[%clk 0:02:56]}  d5 {[%clk 0:03:00]} 2. Bf4 {[%clk 0:02:53]}  Bf5 {[%clk 0:02:58]} 3. c4 {[%clk 0:02:53]}  dxc4 {[%clk 0:02:57]} 4. Nc3 {[%clk 0:02:52]}  Nf6 {[%clk 0:02:57]} 5. f3 {[%clk 0:02:51]}  c5 {[%clk 0:02:55]} 6. d5 {[%clk 0:02:50]}  e6 {[%clk 0:02:31]} 7. e4 {[%clk 0:02:48]}  exd5 {[%clk 0:02:31]} 8. exf5 {[%clk 0:02:44]}  Nc6 {[%clk 0:02:25]} 9. Qe2+ {[%clk 0:02:25]}  Be7 {[%clk 0:02:24]} 10. O-O-O {[%clk 0:02:25]}  O-O {[%clk 0:02:15]} 11. g4 {[%clk 0:02:23]}  Nd4 {[%clk 0:02:12]} 12. Qd2 {[%clk 0:02:14]}  b5 {[%clk 0:02:11]} 13. Nce2 {[%clk 0:02:03]}  Nxe2+ {[%clk 0:02:09]} 14. Nxe2 {[%clk 0:02:04]}  d4 {[%clk 0:02:09]} 15. Ng3 {[%clk 0:01:39]}  Nd5 {[%clk 0:02:06]} 16. Ne4 {[%clk 0:01:40]}  Qc8 {[%clk 0:01:06]} 17. Kb1 {[%clk 0:00:57]}  Rd8 {[%clk 0:01:05]} 18. h4 {[%clk 0:00:55]}  c3 {[%clk 0:01:03]} 19. bxc3 {[%clk 0:00:47]}  dxc3 {[%clk 0:01:04]} 20. Nxc3 {[%clk 0:00:43]}  Nxc3+ {[%clk 0:01:04]} 21. Qxc3 {[%clk 0:00:43]}  Rxd1+ {[%clk 0:01:04]} 22. Kc2 {[%clk 0:00:27]}  Bf6 {[%clk 0:01:00]} 23. Qb3 {[%clk 0:00:18]}  Rd4 {[%clk 0:00:48]} 24. Be3 {[%clk 0:00:16]}  Rb4 {[%clk 0:00:48]} 25. Qd5 {[%clk 0:00:16]}  Qd8 {[%clk 0:00:34]} 26. Qxd8+ {[%clk 0:00:11]}  Rxd8 {[%clk 0:00:35]} 27. g5 {[%clk 0:00:11]}  Rb2+ {[%clk 0:00:26]} 28. Kc1 {[%clk 0:00:12]}  Bc3 {[%clk 0:00:27]} 29. Bxc5 {[%clk 0:00:06]}  Rxa2 {[%clk 0:00:24]} 30. Bxb5 {[%clk 0:00:03]}  Ra1+ {[%clk 0:00:23]} 31. Kc2 {[%clk 0:00:03]}  Rxh1 {[%clk 0:00:24]} 32. Kxc3 {[%clk 0:00:04]}  Rc8 {[%clk 0:00:21]} 33. Kd4 {[%clk 0:00:04]}  Rd1+ {[%clk 0:00:20]} 0-1


[Site "https://www.chess.com"]

[Event "Titled Tuesday Blitz February 15 Late 2022"]
[White "Zhurbinsky, David"]
[Black "Iljin, Timofey"]
[WhiteFideId "2072904"]
[BlackFideId "14110180"]
[WhiteElo "2537"]
[BlackElo "2396"]
[Result "0-1"]
[Round "06"]
[TimeControl "180+1"]
[Date "2022.02.16"]
[WhiteClock "0:00:05"]
[BlackClock "0:00:05"]

1. e4 {[%clk 0:03:00]}  c5 {[%clk 0:02:59]} 2. Nf3 {[%clk 0:03:01]}  Nc6 {[%clk 0:02:59]} 3. c4 {[%clk 0:03:01]}  e5 {[%clk 0:02:59]} 4. Nc3 {[%clk 0:03:01]}  Be7 {[%clk 0:02:59]} 5. Be2 {[%clk 0:03:02]}  d6 {[%clk 0:02:59]} 6. a3 {[%clk 0:03:02]}  f5 {[%clk 0:03:00]} 7. Rb1 {[%clk 0:03:02]}  Nf6 {[%clk 0:02:59]} 8. d3 {[%clk 0:03:02]}  O-O {[%clk 0:02:58]} 9. b4 {[%clk 0:03:02]}  b6 {[%clk 0:02:55]} 10. O-O {[%clk 0:03:00]}  fxe4 {[%clk 0:02:50]} 11. dxe4 {[%clk 0:03:00]}  Nd4 {[%clk 0:02:48]} 12. h3 {[%clk 0:02:47]}  Kh8 {[%clk 0:02:25]} 13. Be3 {[%clk 0:02:42]}  Be6 {[%clk 0:02:24]} 14. Qd3 {[%clk 0:02:14]}  Rc8 {[%clk 0:02:18]} 15. Rbc1 {[%clk 0:02:00]}  Nxf3+ {[%clk 0:02:02]} 16. Bxf3 {[%clk 0:01:54]}  cxb4 {[%clk 0:02:03]} 17. Nb5 {[%clk 0:01:48]}  a6 {[%clk 0:01:30]} 18. Na7 {[%clk 0:01:41]}  Rc7 {[%clk 0:01:17]} 19. Bxb6 {[%clk 0:01:41]}  Qd7 {[%clk 0:01:16]} 20. Bxc7 {[%clk 0:01:32]}  Qxc7 {[%clk 0:01:17]} 21. axb4 {[%clk 0:01:13]}  Qxa7 {[%clk 0:01:16]} 22. Ra1 {[%clk 0:01:13]}  Qb7 {[%clk 0:01:09]} 23. b5 {[%clk 0:01:02]}  axb5 {[%clk 0:01:08]} 24. cxb5 {[%clk 0:01:03]}  Nd7 {[%clk 0:01:08]} 25. Rfb1 {[%clk 0:01:01]}  Nc5 {[%clk 0:01:07]} 26. Qe3 {[%clk 0:00:58]}  Qb6 {[%clk 0:00:55]} 27. Ra6 {[%clk 0:00:56]}  Qb7 {[%clk 0:00:54]} 28. Ra5 {[%clk 0:00:49]}  Bd8 {[%clk 0:00:53]} 29. b6 {[%clk 0:00:45]}  Bxb6 {[%clk 0:00:26]} 30. Rab5 {[%clk 0:00:44]}  Nd7 {[%clk 0:00:26]} 31. Rxb6 {[%clk 0:00:43]}  Nxb6 {[%clk 0:00:27]} 32. Rxb6 {[%clk 0:00:43]}  Qc7 {[%clk 0:00:27]} 33. Kh2 {[%clk 0:00:41]}  Rd8 {[%clk 0:00:25]} 34. Ra6 {[%clk 0:00:38]}  Qe7 {[%clk 0:00:20]} 35. Ra7 {[%clk 0:00:36]}  Qf6 {[%clk 0:00:20]} 36. Qb6 {[%clk 0:00:30]}  Bg8 {[%clk 0:00:19]} 37. Qe3 {[%clk 0:00:19]}  h6 {[%clk 0:00:18]} 38. g3 {[%clk 0:00:16]}  Rf8 {[%clk 0:00:18]} 39. Ra3 {[%clk 0:00:16]}  Be6 {[%clk 0:00:15]} 40. Kg2 {[%clk 0:00:13]}  Bf7 {[%clk 0:00:15]} 41. Bg4 {[%clk 0:00:13]}  Bg6 {[%clk 0:00:15]} 42. Qb6 {[%clk 0:00:11]}  Bxe4+ {[%clk 0:00:13]} 43. Kg1 {[%clk 0:00:11]}  d5 {[%clk 0:00:11]} 44. Qe3 {[%clk 0:00:10]}  Bg6 {[%clk 0:00:10]} 45. Qe2 {[%clk 0:00:09]}  d4 {[%clk 0:00:09]} 46. Rf3 {[%clk 0:00:09]}  Qe7 {[%clk 0:00:04]} 47. Rxf8+ {[%clk 0:00:10]}  Qxf8 {[%clk 0:00:04]} 48. Qxe5 {[%clk 0:00:10]}  Qd8 {[%clk 0:00:04]} 49. Qe6 {[%clk 0:00:08]}  Kh7 {[%clk 0:00:04]} 50. Qe2 {[%clk 0:00:06]}  d3 {[%clk 0:00:03]} 51. Qd2 {[%clk 0:00:07]}  Qd4 {[%clk 0:00:03]} 52. Bf3 {[%clk 0:00:06]}  h5 {[%clk 0:00:03]} 53. g4 {[%clk 0:00:05]}  h4 {[%clk 0:00:03]} 54. Kh2 {[%clk 0:00:05]}  Be4 {[%clk 0:00:03]} 55. Bxe4+ {[%clk 0:00:04]}  Qxe4 {[%clk 0:00:02]} 56. Qg5 {[%clk 0:00:04]}  Qe2 {[%clk 0:00:01]} 57. Qxh4+ {[%clk 0:00:05]}  Kg8 {[%clk 0:00:01]} 58. Qd8+ {[%clk 0:00:05]}  Kh7 {[%clk 0:00:01]} 59. Qh4+ {[%clk 0:00:05]}  Kg8 {[%clk 0:00:01]} 60. Qg3 {[%clk 0:00:05]}  d2 {[%clk 0:00:01]} 61. Qb8+ {[%clk 0:00:06]}  Kh7 {[%clk 0:00:01]} 62. Qb1+ {[%clk 0:00:07]}  g6 {[%clk 0:00:01]} 63. Qb7+ {[%clk 0:00:07]}  Kh6 {[%clk 0:00:01]} 64. g5+ {[%clk 0:00:07]}  Kxg5 {[%clk 0:00:01]} 65. Qg2+ {[%clk 0:00:07]}  Kf4 {[%clk 0:00:01]} 66. Qg3+ {[%clk 0:00:06]}  Kf5 {[%clk 0:00:02]} 67. Qd6 {[%clk 0:00:02]}  d1=Q {[%clk 0:00:01]} 68. Qf8+ {[%clk 0:00:02]}  Ke4 {[%clk 0:00:02]} 69. Qe7+ {[%clk 0:00:02]}  Kd3 {[%clk 0:00:03]} 70. Qd6+ {[%clk 0:00:02]}  Kc2 {[%clk 0:00:03]} 71. Qc5+ {[%clk 0:00:02]}  Kd2 {[%clk 0:00:03]} 72. Qd4+ {[%clk 0:00:03]}  Ke1 {[%clk 0:00:03]} 73. Qc3+ {[%clk 0:00:03]}  Qed2 {[%clk 0:00:04]} 74. Qe5+ {[%clk 0:00:03]}  Kf1 {[%clk 0:00:03]} 75. Qg3 {[%clk 0:00:04]}  Qxf2+ {[%clk 0:00:02]} 76. Qxf2+ {[%clk 0:00:04]}  Kxf2 {[%clk 0:00:03]} 77. h4 {[%clk 0:00:04]}  Qg1+ {[%clk 0:00:04]} 78. Kh3 {[%clk 0:00:05]}  Qg3# {[%clk 0:00:05]} 0-1


[Site "https://www.chess.com"]

[Event "Titled Tuesday Blitz February 15 Late 2022"]
[White "Al-Tarboush, Ward"]
[Black "Sarkar, Justin"]
[WhiteFideId "7601450"]
[BlackFideId "2010011"]
[WhiteElo "2276"]
[BlackElo "2038"]
[Result "1-0"]
[Round "07"]
[TimeControl "180+1"]
[Date "2022.02.16"]
[WhiteClock "0:02:18"]
[BlackClock "0:00:01"]

1. e4 {[%clk 0:03:00]}  e5 {[%clk 0:02:40]} 2. Nf3 {[%clk 0:03:01]}  Nc6 {[%clk 0:02:40]} 3. Bb5 {[%clk 0:03:01]}  a6 {[%clk 0:02:40]} 4. Ba4 {[%clk 0:03:02]}  Nf6 {[%clk 0:02:40]} 5. O-O {[%clk 0:03:02]}  Be7 {[%clk 0:02:39]} 6. Qe2 {[%clk 0:03:03]}  b5 {[%clk 0:02:35]} 7. Bb3 {[%clk 0:03:02]}  O-O {[%clk 0:02:33]} 8. c3 {[%clk 0:03:02]}  d5 {[%clk 0:02:27]} 9. d3 {[%clk 0:03:02]}  Be6 {[%clk 0:02:20]} 10. Nbd2 {[%clk 0:03:01]}  Qd6 {[%clk 0:02:05]} 11. Rd1 {[%clk 0:03:00]}  Rad8 {[%clk 0:01:57]} 12. Nf1 {[%clk 0:03:00]}  d4 {[%clk 0:01:33]} 13. Ng3 {[%clk 0:02:54]}  g6 {[%clk 0:00:47]} 14. Bh6 {[%clk 0:02:53]}  Rfe8 {[%clk 0:00:45]} 15. Rac1 {[%clk 0:02:53]}  Ng4 {[%clk 0:00:16]} 16. Bg5 {[%clk 0:02:47]}  Bxb3 {[%clk 0:00:13]} 17. axb3 {[%clk 0:02:46]}  f6 {[%clk 0:00:08]} 18. h3 {[%clk 0:02:32]}  Nxf2 {[%clk 0:00:05]} 19. Qxf2 {[%clk 0:02:30]}  fxg5 {[%clk 0:00:05]} 20. Nh2 {[%clk 0:02:26]}  dxc3 {[%clk 0:00:04]} 21. bxc3 {[%clk 0:02:26]}  Qc5 {[%clk 0:00:04]} 22. d4 {[%clk 0:02:26]}  exd4 {[%clk 0:00:03]} 23. cxd4 {[%clk 0:02:27]}  Qb6 {[%clk 0:00:02]} 24. Ng4 {[%clk 0:02:23]}  Nxd4 {[%clk 0:00:01]} 25. Kh1 {[%clk 0:02:18]} 1-0


[Site "https://www.chess.com"]